[Event "British Rapidplay Championship 2023"]
[Site "Mercure Bradford, Bankfield Hotel"]
[Date "2023.04.15"]
[Round "5.14"]
[White "Senior, Gary"]
[Black "Zhao, George"]
[Result "1-0"]
[TimeControl "15 minutes plus 10 seconds per move"]
[WhiteElo "1911"]
[BlackElo "1675"]

1. e4 {[%clk 00:15:18]} e6 {[%clk 00:15:19]} {[%emt 00:00:02]} 2. d4 {[%clk
00:15:27]} {[%emt 00:00:02]} d5 {[%clk 00:15:28]} {[%emt 00:00:01]} 3. Nd2
{[%clk 00:15:35]} {[%emt 00:00:02]} c5 {[%clk 00:15:35]} {[%emt 00:00:03]} 4.
Ngf3 {[%clk 00:15:40]} {[%emt 00:00:04]} Nc6 {[%clk 00:15:43]} {[%emt
00:00:03]} 5. exd5 {[%clk 00:15:41]} {[%emt 00:00:09]} Qxd5 {[%clk 00:15:51]}
{[%emt 00:00:02]} 6. Bc4 {[%clk 00:15:01]} {[%emt 00:00:49]} Qd8 {[%clk
00:15:41]} {[%emt 00:00:20]} 7. Nb3 {[%clk 00:13:59]} {[%emt 00:01:12]} cxd4
{[%clk 00:15:25]} {[%emt 00:00:26]} 8. Nbxd4 {[%clk 00:13:51]} {[%emt
00:00:18]} Nxd4 {[%clk 00:15:25]} {[%emt 00:00:11]} 9. Qxd4 {[%clk 00:12:51]}
{[%emt 00:01:09]} Qxd4 {[%clk 00:15:09]} {[%emt 00:00:26]} 10. Nxd4 {[%clk
00:12:59]} {[%emt 00:00:02]} a6 {[%clk 00:15:18]} {[%emt 00:00:02]} 11. Be3
{[%clk 00:12:23]} {[%emt 00:00:46]} Bc5 {[%clk 00:14:50]} {[%emt 00:00:39]} 12.
O-O-O {[%clk 00:10:34]} {[%emt 00:01:57]} Nf6 {[%clk 00:14:48]} {[%emt
00:00:13]} 13. Kb1 {[%clk 00:09:47]} {[%emt 00:00:56]} O-O {[%clk 00:14:09]}
{[%emt 00:00:49]} 14. Nf5 {[%clk 00:09:38]} {[%emt 00:00:18]} Bxe3 {[%clk
00:13:34]} {[%emt 00:00:46]} 15. Nxe3 {[%clk 00:09:47]} {[%emt 00:00:02]} b5
{[%clk 00:13:43]} {[%emt 00:00:02]} 16. Be2 {[%clk 00:09:04]} {[%emt 00:00:51]}
Bb7 {[%clk 00:13:48]} {[%emt 00:00:05]} 17. Rd4 {[%clk 00:08:58]} {[%emt
00:00:15]} e5 {[%clk 00:13:11]} {[%emt 00:00:48]} 18. Rd3 {[%clk 00:08:33]}
{[%emt 00:00:35]} Rab8 {[%clk 00:10:53]} {[%emt 00:02:29]} 19. Rhd1 {[%clk
00:08:21]} {[%emt 00:00:20]} Ne4 {[%clk 00:10:56]} {[%emt 00:00:08]} 20. Rf1
{[%clk 00:08:04]} {[%emt 00:00:25]} Rbd8 {[%clk 00:11:01]} {[%emt 00:00:08]} 21.
Kc1 {[%clk 00:07:37]} {[%emt 00:00:36]} g6 {[%clk 00:08:25]} {[%emt 00:02:46]}
22. g4 {[%clk 00:06:11]} {[%emt 00:01:35]} Nc5 {[%clk 00:07:45]} {[%emt
00:00:52]} 23. Rdd1 {[%clk 00:05:34]} {[%emt 00:00:46]} Ne6 {[%clk 00:07:33]}
{[%emt 00:00:23]} 24. Rxd8 {[%clk 00:04:35]} {[%emt 00:01:09]} Rxd8 {[%clk
00:07:38]} {[%emt 00:00:04]} 25. h4 {[%clk 00:04:35]} {[%emt 00:00:09]} Nf4
{[%clk 00:07:39]} {[%emt 00:00:10]} 26. Bd1 {[%clk 00:04:38]} {[%emt 00:00:07]}
Kf8 {[%clk 00:06:59]} {[%emt 00:00:51]} 27. g5 {[%clk 00:04:35]} {[%emt
00:00:13]} Rd4 {[%clk 00:06:16]} {[%emt 00:00:53]} 28. Ng4 {[%clk 00:01:55]}
{[%emt 00:02:49]} Ng2 {[%clk 00:03:40]} {[%emt 00:02:46]} 29. Nxe5 {[%clk
00:01:57]} {[%emt 00:00:08]} Nxh4 {[%emt 00:00:05]} 30. f4 {[%clk 00:01:30]}
{[%emt 00:00:36]} Nf5 {[%clk 00:03:16]} {[%emt 00:00:41]} 31. Ng4 {[%clk
00:01:32]} {[%emt 00:00:07]} Kg7 {[%clk 00:02:45]} {[%emt 00:00:41]} 32. c3
{[%clk 00:01:18]} {[%emt 00:00:25]} Rd6 {[%clk 00:02:21]} {[%emt 00:00:33]} 33.
Bc2 {[%clk 00:01:15]} {[%emt 00:00:14]} Ng3 {[%clk 00:01:25]} {[%emt 00:01:05]}
34. Re1 {[%clk 00:01:15]} {[%emt 00:00:08]} Bf3 {[%clk 00:01:28]} {[%emt
00:00:10]} 35. Nf6 {[%clk 00:01:12]} {[%emt 00:00:13]} Ne2+ {[%clk 00:01:13]}
{[%emt 00:00:25]} 36. Rxe2 {[%clk 00:01:17]} {[%emt 00:00:04]} Rd8 {[%clk
00:01:00]} {[%emt 00:00:24]} 37. Re8 {[%clk 00:01:16]} {[%emt 00:00:11]} Rxe8
{[%clk 00:01:07]} {[%emt 00:00:03]} 38. Nxe8+ {[%clk 00:01:25]} {[%emt
00:00:01]} Kf8 {[%clk 00:01:15]} 39. Nf6 {[%clk 00:01:27]} {[%emt 00:00:08]}
Ke7 {[%clk 00:01:18]} {[%emt 00:00:09]} 40. Nxh7 {[%clk 00:01:29]} {[%emt
00:00:06]} Ke6 {[%clk 00:01:25]} {[%emt 00:00:04]} 41. Kd2 {[%clk 00:01:37]}
{[%emt 00:00:02]} Bd5 {[%clk 00:01:30]} {[%emt 00:00:05]} 42. Bb3 {[%clk
00:01:43]} {[%emt 00:00:04]} Bxb3 {[%clk 00:01:37]} {[%emt 00:00:03]} 43. axb3
{[%clk 00:01:52]} {[%emt 00:00:01]} Kf5 {[%clk 00:01:46]} 44. Ke3 {[%clk
00:02:01]} {[%emt 00:00:01]} a5 {[%clk 00:01:55]} {[%emt 00:00:01]} 45. c4
{[%clk 00:02:05]} {[%emt 00:00:05]} bxc4 {[%clk 00:02:04]} {[%emt 00:00:02]} 46.
bxc4 {[%clk 00:02:14]} {[%emt 00:00:01]} a4 {[%clk 00:02:12]} {[%emt 00:00:02]}
47. Nf6 {[%clk 00:02:16]} {[%emt 00:00:08]} Ke6 {[%clk 00:02:21]} 1-0

[Event "British Rapidplay Championship 2023"]
[Site "Mercure Bradford, Bankfield Hotel"]
[Date "2023.04.15"]
[Round "5.16"]
[White "Surtees, Mike J"]
[Black "Deepak Ambattu, Rithvik"]
[Result "1-0"]
[TimeControl "15 minutes plus 10 seconds per move"]
[WhiteElo "2111"]
[BlackElo "1782"]

1. e4 {[%clk 00:00:00]} {[%emt 00:33:37]} c5 {[%clk 00:15:16]} {[%emt
00:00:33]} 2. Nf3 {[%clk 00:15:16]} {[%emt 00:00:12]} g6 {[%clk 00:15:21]}
{[%emt 00:00:04]} 3. d4 {[%clk 00:15:13]} {[%emt 00:00:13]} cxd4 {[%clk
00:15:30]} {[%emt 00:00:02]} 4. Nxd4 {[%clk 00:15:20]} {[%emt 00:00:03]} Nc6
{[%clk 00:15:38]} {[%emt 00:00:01]} 5. Nc3 {[%clk 00:15:15]} {[%emt 00:00:16]}
Bg7 {[%clk 00:15:47]} {[%emt 00:00:01]} 6. Be3 {[%clk 00:15:14]} {[%emt
00:00:11]} Nf6 {[%clk 00:15:55]} {[%emt 00:00:02]} 7. Be2 {[%clk 00:14:59]}
{[%emt 00:00:24]} O-O {[%clk 00:16:00]} {[%emt 00:00:06]} 8. O-O {[%clk
00:14:59]} {[%emt 00:00:10]} d5 {[%clk 00:16:08]} {[%emt 00:00:02]} 9. exd5
{[%clk 00:13:47]} {[%emt 00:01:21]} Nxd5 {[%clk 00:15:37]} {[%emt 00:00:41]} 10.
Nxd5 {[%clk 00:13:31]} {[%emt 00:00:27]} Nxd4 {[%clk 00:15:33]} {[%emt
00:00:14]} 11. Bxd4 {[%clk 00:13:20]} {[%emt 00:00:21]} Qxd5 {[%clk 00:15:40]}
{[%emt 00:00:02]} 12. Bxg7 {[%clk 00:13:21]} {[%emt 00:00:09]} Qxd1 {[%clk
00:15:45]} {[%emt 00:00:06]} 13. Rfxd1 {[%clk 00:13:24]} {[%emt 00:00:07]} Kxg7
{[%clk 00:15:51]} {[%emt 00:00:04]} 14. Bf3 {[%clk 00:12:57]} {[%emt 00:00:36]}
Bf5 {[%clk 00:15:55]} {[%emt 00:00:07]} 15. c3 {[%clk 00:12:51]} {[%emt
00:00:16]} Rab8 {[%clk 00:15:31]} {[%emt 00:00:35]} 16. Rd2 {[%clk 00:11:40]}
{[%emt 00:01:20]} b5 {[%clk 00:15:16]} {[%emt 00:00:25]} 17. Rad1 {[%clk
00:11:35]} {[%emt 00:00:14]} Rfc8 {[%clk 00:14:48]} {[%emt 00:00:38]} 18. Bd5
{[%clk 00:10:05]} {[%emt 00:01:41]} b4 {[%clk 00:14:08]} {[%emt 00:00:50]} 19.
cxb4 {[%clk 00:09:44]} {[%emt 00:00:30]} Rxb4 {[%clk 00:14:08]} 20. b3 {[%clk
00:09:22]} {[%emt 00:00:42]} a5 {[%clk 00:12:12]} {[%emt 00:02:07]} 21. f3
{[%clk 00:09:27]} {[%emt 00:00:05]} g5 {[%clk 00:11:29]} {[%emt 00:00:52]} 22.
Bc4 {[%clk 00:08:37]} {[%emt 00:01:00]} h5 {[%clk 00:10:32]} {[%emt 00:01:07]}
23. Rd5 {[%clk 00:08:24]} {[%emt 00:00:23]} Be6 {[%clk 00:09:29]} {[%emt
00:01:13]} 24. Rxg5+ {[%clk 00:08:14]} {[%emt 00:00:20]} Kf6 {[%clk 00:09:34]}
{[%emt 00:00:06]} 25. Bxe6 {[%clk 00:08:01]} {[%emt 00:00:23]} Kxe6 {[%clk
00:09:27]} {[%emt 00:00:16]} 26. Rxa5 {[%clk 00:06:33]} {[%emt 00:01:39]} Rc2
{[%clk 00:08:38]} {[%emt 00:00:59]} 27. Kf1 {[%clk 00:04:55]} {[%emt 00:01:47]}
h4 {[%clk 00:07:51]} {[%emt 00:00:58]} 28. Re1+ {[%clk 00:05:03]} {[%emt
00:00:02]} Kf6 {[%clk 00:07:23]} {[%emt 00:00:38]} 29. Re2 {[%clk 00:05:10]}
{[%emt 00:00:03]} Rc1+ {[%clk 00:06:59]} {[%emt 00:00:34]} 30. Kf2 {[%clk
00:05:18]} {[%emt 00:00:02]} Rh1 {[%clk 00:07:04]} {[%emt 00:00:05]} 31. h3
{[%clk 00:03:52]} {[%emt 00:01:35]} Ra1 {[%clk 00:06:04]} {[%emt 00:01:10]} 32.
Rae5 {[%clk 00:03:40]} {[%emt 00:00:23]} e6 {[%clk 00:03:49]} {[%emt 00:02:25]}
33. R5e4 {[%clk 00:03:46]} {[%emt 00:00:03]} Rxe4 {[%clk 00:03:57]} {[%emt
00:00:03]} 34. fxe4 {[%clk 00:03:55]} Ke5 {[%clk 00:03:54]} {[%emt 00:00:12]}
35. Ke3 {[%clk 00:03:55]} {[%emt 00:00:08]} Kd6 {[%clk 00:03:33]} {[%emt
00:00:32]} 36. Kf4 {[%clk 00:03:46]} {[%emt 00:00:20]} f6 {[%clk 00:03:17]}
{[%emt 00:00:26]} 37. Kg4 {[%clk 00:03:51]} {[%emt 00:00:05]} Ke5 {[%clk
00:03:26]} {[%emt 00:00:02]} 38. Kxh4 {[%clk 00:03:55]} {[%emt 00:00:07]} Kf4
{[%clk 00:03:03]} {[%emt 00:00:32]} 39. Kh5 {[%clk 00:03:42]} {[%emt 00:00:22]}
f5 {[%clk 00:02:38]} {[%emt 00:00:36]} 40. exf5 {[%clk 00:03:31]} {[%emt
00:00:20]} Kxf5 {[%clk 00:02:46]} {[%emt 00:00:03]} 41. g4+ {[%clk 00:03:17]}
{[%emt 00:00:24]} Kf6 {[%clk 00:02:53]} {[%emt 00:00:02]} 42. g5+ {[%clk
00:02:47]} {[%emt 00:00:40]} Kf5 {[%clk 00:02:59]} {[%emt 00:00:04]} 43. g6
{[%clk 00:02:24]} {[%emt 00:00:33]} Rh1 {[%clk 00:03:06]} {[%emt 00:00:03]} 44.
h4 {[%clk 00:02:10]} {[%emt 00:00:25]} Kf6 {[%clk 00:03:11]} {[%emt 00:00:05]}
45. Rf2+ {[%clk 00:02:06]} {[%emt 00:00:13]} Kg7 {[%clk 00:03:19]} {[%emt
00:00:02]} 46. Rf7+ {[%clk 00:02:10]} {[%emt 00:00:06]} Kg8 {[%clk 00:03:27]}
{[%emt 00:00:02]} 47. Re7 {[%clk 00:02:10]} {[%emt 00:00:11]} Kf8 {[%clk
00:03:32]} {[%emt 00:00:04]} 48. Rxe6 {[%clk 00:02:13]} {[%emt 00:00:07]} Kg7
{[%clk 00:03:41]} {[%emt 00:00:02]} 49. Re7+ {[%clk 00:02:19]} {[%emt
00:00:04]} Kf6 {[%clk 00:03:50]} {[%emt 00:00:01]} 50. Rf7+ {[%clk 00:02:25]}
{[%emt 00:00:04]} Ke6 {[%clk 00:03:58]} {[%emt 00:00:01]} 51. Rf4 {[%clk
00:02:14]} {[%emt 00:00:17]} Rg1 {[%clk 00:04:05]} {[%emt 00:00:08]} 52. Rg4
{[%clk 00:02:16]} {[%emt 00:00:07]} 1-0

[Event "British Rapidplay Championship 2023"]
[Site "Mercure Bradford, Bankfield Hotel"]
[Date "2023.04.15"]
[Round "5.17"]
[White "Nicholson, Jim WR"]
[Black "Arkell, Keith C"]
[Result "0-1"]
[TimeControl "15 minutes plus 10 seconds per move"]
[WhiteElo "1958"]
[BlackElo "2447"]

1. d4 {[%clk 00:15:17]} {[%emt 00:00:02]} Nf6 {[%clk 00:09:53]} {[%emt
00:05:29]} 2. Nf3 {[%clk 00:15:25]} {[%emt 00:00:02]} e6 {[%clk 00:10:01]}
{[%emt 00:00:02]} 3. Bg5 {[%clk 00:15:27]} {[%emt 00:00:07]} c5 {[%clk
00:10:09]} {[%emt 00:00:02]} 4. e3 {[%clk 00:15:30]} {[%emt 00:00:08]} cxd4
{[%clk 00:10:17]} {[%emt 00:00:02]} 5. exd4 {[%clk 00:15:37]} {[%emt 00:00:03]}
Be7 {[%clk 00:10:25]} {[%emt 00:00:02]} 6. Nbd2 {[%clk 00:15:32]} {[%emt
00:00:15]} b6 {[%clk 00:10:33]} {[%emt 00:00:03]} 7. Bd3 {[%clk 00:15:27]}
{[%emt 00:00:14]} Ba6 {[%clk 00:10:35]} {[%emt 00:00:09]} 8. Bxa6 {[%clk
00:14:30]} {[%emt 00:01:07]} Nxa6 {[%clk 00:10:42]} {[%emt 00:00:02]} 9. c3
{[%clk 00:14:35]} {[%emt 00:00:04]} Nc7 {[%clk 00:10:50]} {[%emt 00:00:02]} 10.
O-O {[%clk 00:14:40]} {[%emt 00:00:04]} O-O {[%clk 00:10:57]} {[%emt 00:00:03]}
11. Qe2 {[%clk 00:14:43]} {[%emt 00:00:07]} b5 {[%clk 00:11:03]} {[%emt
00:00:04]} 12. Ne5 {[%clk 00:14:23]} {[%emt 00:00:30]} Qe8 {[%clk 00:10:50]}
{[%emt 00:00:24]} 13. f4 {[%clk 00:12:47]} {[%emt 00:01:45]} d6 {[%clk
00:10:58]} {[%emt 00:00:02]} 14. Nef3 {[%clk 00:12:54]} {[%emt 00:00:03]} Nfd5
{[%clk 00:10:51]} {[%emt 00:00:17]} 15. Bxe7 {[%clk 00:12:56]} {[%emt
00:00:09]} Qxe7 {[%clk 00:10:59]} {[%emt 00:00:02]} 16. g3 {[%clk 00:12:59]}
{[%emt 00:00:07]} Rab8 {[%clk 00:10:55]} {[%emt 00:00:14]} 17. a3 {[%clk
00:12:58]} {[%emt 00:00:10]} Rfe8 {[%emt 00:00:25]} 18. Rae1 {[%clk 00:12:48]}
Qd7 {[%clk 00:11:07]} {[%emt 00:00:04]} 19. Qf2 {[%clk 00:12:30]} {[%emt
00:00:27]} Nf6 {[%clk 00:11:11]} {[%emt 00:00:06]} 20. h3 {[%clk 00:11:50]}
{[%emt 00:00:50]} h6 {[%clk 00:11:19]} {[%emt 00:00:02]} 21. Kh2 {[%clk
00:11:54]} {[%emt 00:00:06]} Ncd5 {[%clk 00:11:16]} {[%emt 00:00:14]} 22. Ne4
{[%clk 00:11:14]} {[%emt 00:00:50]} Nxe4 {[%clk 00:11:23]} {[%emt 00:00:03]} 23.
Rxe4 {[%clk 00:11:23]} a5 {[%clk 00:11:21]} {[%emt 00:00:13]} 24. Nd2 {[%clk
00:10:59]} {[%emt 00:00:33]} Qc6 {[%clk 00:11:23]} {[%emt 00:00:09]} 25. Rfe1
{[%clk 00:10:53]} {[%emt 00:00:16]} Nf6 {[%clk 00:11:28]} {[%emt 00:00:04]} 26.
R4e2 {[%clk 00:10:57]} {[%emt 00:00:06]} Qd5 {[%clk 00:11:29]} {[%emt
00:00:10]} 27. Ne4 {[%clk 00:10:49]} {[%emt 00:00:16]} Nxe4 {[%clk 00:11:37]}
{[%emt 00:00:03]} 28. Rxe4 {[%clk 00:10:58]} {[%emt 00:00:01]} Rec8 {[%clk
00:11:36]} {[%emt 00:00:11]} 29. g4 {[%clk 00:09:52]} {[%emt 00:01:16]} b4
{[%clk 00:11:42]} {[%emt 00:00:04]} 30. axb4 {[%clk 00:09:44]} {[%emt
00:00:18]} axb4 {[%clk 00:11:50]} {[%emt 00:00:02]} 31. R4e3 {[%clk 00:09:47]}
{[%emt 00:00:06]} bxc3 {[%clk 00:11:58]} {[%emt 00:00:03]} 32. bxc3 {[%clk
00:09:40]} {[%emt 00:00:16]} Rb3 {[%clk 00:11:53]} {[%emt 00:00:16]} 33. Qg3
{[%clk 00:09:37]} {[%emt 00:00:13]} Qc4 {[%clk 00:11:57]} {[%emt 00:00:06]} 34.
Rc1 {[%clk 00:09:29]} {[%emt 00:00:18]} Rb2+ {[%clk 00:12:04]} {[%emt
00:00:03]} 35. Kg1 {[%clk 00:09:33]} {[%emt 00:00:05]} Rcb8 {[%clk 00:12:06]}
{[%emt 00:00:10]} 36. g5 {[%clk 00:09:35]} {[%emt 00:00:07]} hxg5 {[%clk
00:12:00]} {[%emt 00:00:16]} 37. fxg5 {[%clk 00:09:27]} {[%emt 00:00:17]} Rb1
{[%clk 00:10:17]} {[%emt 00:01:53]} 38. Ree1 {[%clk 00:08:23]} {[%emt
00:01:14]} Rxc1 {[%clk 00:10:24]} {[%emt 00:00:04]} 39. Rxc1 {[%clk 00:08:32]}
{[%emt 00:00:01]} Qd5 {[%clk 00:09:23]} {[%emt 00:01:10]} 40. g6 {[%clk
00:08:17]} {[%emt 00:00:25]} fxg6 {[%clk 00:09:22]} {[%emt 00:00:12]} 41. Rf1
{[%clk 00:07:43]} {[%emt 00:00:44]} g5 {[%clk 00:08:52]} {[%emt 00:00:40]} 42.
Qf2 {[%clk 00:06:57]} {[%emt 00:00:56]} e5 {[%clk 00:07:59]} {[%emt 00:01:04]}
43. Qf5 {[%clk 00:06:40]} {[%emt 00:00:26]} Rb2 {[%clk 00:06:47]} {[%emt
00:01:21]} 44. Qxg5 {[%clk 00:06:38]} {[%emt 00:00:12]} Qe4 {[%clk 00:06:52]}
{[%emt 00:00:06]} 45. dxe5 {[%clk 00:05:32]} {[%emt 00:01:15]} dxe5 {[%clk
00:06:59]} {[%emt 00:00:03]} 46. Rd1 {[%clk 00:04:33]} {[%emt 00:01:07]} Rb1
{[%clk 00:06:39]} {[%emt 00:00:32]} 47. Rxb1 {[%clk 00:04:17]} {[%emt
00:00:26]} Qxb1+ {[%clk 00:06:48]} {[%emt 00:00:01]} 48. Kg2 {[%clk 00:04:26]}
{[%emt 00:00:01]} Qc2+ {[%clk 00:06:56]} {[%emt 00:00:01]} 49. Kg1 {[%clk
00:04:31]} {[%emt 00:00:05]} Qxc3 {[%clk 00:06:06]} {[%emt 00:01:00]} 50. Qd8+
{[%clk 00:04:39]} {[%emt 00:00:02]} Kh7 {[%clk 00:06:11]} {[%emt 00:00:04]} 51.
Qh4+ {[%clk 00:04:45]} {[%emt 00:00:04]} Kg6 {[%clk 00:06:20]} 52. Qg4+ {[%clk
00:04:12]} {[%emt 00:00:43]} Kf6 {[%clk 00:06:28]} {[%emt 00:00:02]} 53. Qh4+
{[%clk 00:04:18]} {[%emt 00:00:05]} g5 {[%clk 00:06:26]} {[%emt 00:00:12]} 54.
Qh6+ {[%clk 00:03:25]} {[%emt 00:01:03]} Kf5 {[%clk 00:06:35]} {[%emt
00:00:01]} 55. Qf8+ {[%clk 00:03:00]} {[%emt 00:00:33]} Ke4 {[%clk 00:06:42]}
{[%emt 00:00:03]} 56. Qa8+ {[%clk 00:03:00]} {[%emt 00:00:11]} Kf4 {[%clk
00:06:48]} {[%emt 00:00:04]} 57. Qf8+ {[%clk 00:03:03]} {[%emt 00:00:07]} Kg3
{[%clk 00:06:49]} {[%emt 00:00:09]} 58. Qf2+ {[%clk 00:02:54]} {[%emt
00:00:19]} Kxh3 {[%clk 00:06:57]} {[%emt 00:00:02]} 59. Qh2+ {[%clk 00:02:37]}
{[%emt 00:00:26]} Kg4 {[%clk 00:07:06]} {[%emt 00:00:02]} 60. Qe2+ {[%clk
00:02:40]} {[%emt 00:00:07]} Qf3 {[%clk 00:07:12]} {[%emt 00:00:04]} 61. Qc4+
{[%clk 00:02:32]} {[%emt 00:00:17]} Kh3 {[%clk 00:07:03]} {[%emt 00:00:19]} 62.
Qc2 {[%clk 00:01:18]} {[%emt 00:01:24]} Qg3+ {[%clk 00:07:03]} {[%emt
00:00:10]} 63. Kf1 {[%clk 00:01:15]} {[%emt 00:00:13]} Qf4+ {[%clk 00:07:11]}
{[%emt 00:00:03]} 64. Kg1 {[%clk 00:01:14]} {[%emt 00:00:10]} Qe3+ {[%clk
00:06:58]} {[%emt 00:00:23]} 65. Kf1 {[%clk 00:01:00]} {[%emt 00:00:24]} Qf4+
{[%clk 00:05:11]} {[%emt 00:01:58]} 66. Kg1 {[%clk 00:00:53]} {[%emt 00:00:16]}
Qd4+ {[%clk 00:05:19]} {[%emt 00:00:02]} 67. Kf1 {[%clk 00:00:57]} {[%emt
00:00:07]} g4 {[%clk 00:04:41]} {[%emt 00:00:48]} 68. Qg2+ {[%clk 00:00:37]}
{[%emt 00:00:29]} Kh4 {[%clk 00:04:51]} {[%emt 00:00:01]} 69. Qh2+ {[%clk
00:00:42]} {[%emt 00:00:04]} Kg5 {[%clk 00:04:59]} {[%emt 00:00:02]} 70. Qh7
{[%clk 00:00:40]} {[%emt 00:00:13]} Qd1+ {[%clk 00:04:58]} {[%emt 00:00:11]} 71.
Kf2 {[%clk 00:00:40]} {[%emt 00:00:08]} Qd2+ {[%clk 00:05:07]} {[%emt
00:00:03]} 72. Kf1 {[%clk 00:00:44]} {[%emt 00:00:05]} Qf4+ {[%clk 00:05:00]}
{[%emt 00:00:16]} 73. Kg1 {[%clk 00:00:45]} {[%emt 00:00:09]} Qf5 {[%clk
00:04:23]} {[%emt 00:00:47]} 74. Qg7+ {[%clk 00:00:44]} {[%emt 00:00:10]} Kf4
{[%clk 00:04:31]} {[%emt 00:00:03]} 75. Qh6+ {[%clk 00:00:41]} {[%emt
00:00:13]} Kf3 {[%clk 00:04:35]} {[%emt 00:00:06]} 76. Qh1+ {[%clk 00:00:42]}
{[%emt 00:00:09]} Ke3 {[%clk 00:04:44]} {[%emt 00:00:02]} 77. Qh6+ {[%clk
00:00:46]} {[%emt 00:00:05]} Qf4 {[%clk 00:04:53]} {[%emt 00:00:02]} 78. Qb6+
{[%clk 00:00:29]} {[%emt 00:00:27]} Qd4 {[%clk 00:05:01]} {[%emt 00:00:02]} 79.
Qh6+ {[%clk 00:00:32]} {[%emt 00:00:06]} Kf3+ {[%clk 00:05:09]} {[%emt
00:00:02]} 80. Kh2 {[%clk 00:00:26]} {[%emt 00:00:17]} Qf2+ {[%clk 00:05:18]}
{[%emt 00:00:01]} 0-1

[Event "British Rapidplay Championship 2023"]
[Site "Mercure Bradford, Bankfield Hotel"]
[Date "2023.04.15"]
[Round "5.18"]
[White "Cheng, Louis"]
[Black "Mosnegutu, Klauss"]
[Result "1-0"]
[TimeControl "15 minutes plus 10 seconds per move"]
[WhiteElo "1617"]
[BlackElo "2229"]

1. e4 {[%clk 00:15:17]} {[%emt 00:00:01]} c5 {[%clk 00:15:19]} {[%emt
00:00:02]} 2. Nf3 {[%clk 00:15:24]} {[%emt 00:00:02]} d6 {[%clk 00:15:28]}
{[%emt 00:00:02]} 3. d4 {[%clk 00:15:33]} {[%emt 00:00:02]} cxd4 {[%clk
00:15:36]} {[%emt 00:00:02]} 4. Nxd4 {[%clk 00:15:40]} {[%emt 00:00:02]} Nf6
{[%clk 00:15:44]} {[%emt 00:00:02]} 5. Nc3 {[%clk 00:15:48]} {[%emt 00:00:02]}
a6 {[%clk 00:15:53]} {[%emt 00:00:02]} 6. Bg5 {[%clk 00:15:56]} {[%emt
00:00:02]} e5 {[%clk 00:16:02]} {[%emt 00:00:02]} 7. Nf5 {[%clk 00:16:03]}
{[%emt 00:00:03]} Bxf5 {[%clk 00:16:09]} {[%emt 00:00:03]} 8. Bxf6 {[%clk
00:16:10]} {[%emt 00:00:02]} Qxf6 {[%clk 00:15:23]} {[%emt 00:00:57]} 9. Nd5
{[%clk 00:16:03]} {[%emt 00:00:17]} Qd8 {[%clk 00:15:27]} {[%emt 00:00:07]} 10.
exf5 {[%clk 00:16:10]} {[%emt 00:00:03]} Nc6 {[%clk 00:15:31]} {[%emt
00:00:06]} 11. c3 {[%clk 00:15:48]} {[%emt 00:00:31]} Be7 {[%clk 00:15:36]}
{[%emt 00:00:05]} 12. Bd3 {[%clk 00:15:55]} {[%emt 00:00:03]} O-O {[%clk
00:15:42]} {[%emt 00:00:05]} 13. O-O {[%clk 00:16:00]} {[%emt 00:00:05]} Rc8
{[%clk 00:15:33]} {[%emt 00:00:20]} 14. Re1 {[%clk 00:15:22]} {[%emt 00:00:47]}
Bf6 {[%clk 00:15:41]} {[%emt 00:00:02]} 15. Re3 {[%clk 00:14:40]} {[%emt
00:00:51]} Re8 {[%clk 00:15:35]} {[%emt 00:00:17]} 16. Be4 {[%clk 00:14:21]}
{[%emt 00:00:28]} h6 {[%clk 00:13:34]} {[%emt 00:02:11]} 17. Rg3 {[%clk
00:14:08]} {[%emt 00:00:22]} Bh4 {[%clk 00:12:02]} {[%emt 00:01:43]} 18. Qg4
{[%clk 00:11:13]} {[%emt 00:03:05]} Bf6 {[%clk 00:10:52]} {[%emt 00:01:21]} 19.
Qh5 {[%clk 00:10:19]} {[%emt 00:01:04]} Kf8 {[%clk 00:10:47]} {[%emt 00:00:15]}
20. Rd1 {[%clk 00:09:48]} {[%emt 00:00:40]} Na7 {[%clk 00:10:25]} {[%emt
00:00:32]} 21. Nxf6 {[%clk 00:09:31]} {[%emt 00:00:28]} Qxf6 {[%clk 00:10:26]}
{[%emt 00:00:09]} 22. Bxb7 {[%clk 00:09:39]} {[%emt 00:00:02]} Rb8 {[%clk
00:09:15]} {[%emt 00:01:21]} 23. Bxa6 {[%clk 00:09:47]} {[%emt 00:00:03]} Rxb2
{[%clk 00:09:15]} {[%emt 00:00:10]} 24. Bc4 {[%clk 00:09:53]} {[%emt 00:00:03]}
e4 {[%clk 00:08:00]} {[%emt 00:01:25]} 25. h3 {[%clk 00:08:53]} {[%emt
00:01:09]} Re7 {[%clk 00:05:58]} {[%emt 00:02:13]} 26. Qg4 {[%clk 00:06:55]}
{[%emt 00:02:08]} Nb5 {[%clk 00:03:15]} {[%emt 00:02:53]} 27. Qf4 {[%clk
00:05:41]} {[%emt 00:01:23]} e3 {[%emt 00:03:29]} 1-0